[Event "Titled Tuesday Blitz April 11 Early 2023"]
[White "Titichoca Daza, Daniel"]
[Black "Kalashian, David"]
[WhiteFideId "3309550"]
[BlackFideId "13302418"]
[WhiteElo "2101"]
[BlackElo "2490"]
[Result "0-1"]
[Round "04"]
[TimeControl "180+2"]
[Date "2023.04.11"]
[WhiteClock "0:00:01"]
[BlackClock "0:00:46"]

1. c4 {[%clk 0:02:39]}  Nf6 {[%clk 0:02:59]} 2. Nc3 {[%clk 0:02:38]}  g6 {[%clk 0:02:59]} 3. g3 {[%clk 0:02:35]}  Bg7 {[%clk 0:02:58]} 4. Bg2 {[%clk 0:02:33]}  O-O {[%clk 0:02:57]} 5. Nf3 {[%clk 0:02:33]}  c6 {[%clk 0:02:58]} 6. O-O {[%clk 0:02:31]}  d6 {[%clk 0:02:58]} 7. d4 {[%clk 0:02:31]}  Bg4 {[%clk 0:02:58]} 8. Qb3 {[%clk 0:02:19]}  Qb6 {[%clk 0:02:57]} 9. Bf4 {[%clk 0:02:19]}  Nbd7 {[%clk 0:02:53]} 10. Qa3 {[%clk 0:02:07]}  Bxf3 {[%clk 0:02:37]} 11. Bxf3 {[%clk 0:02:03]}  Qxd4 {[%clk 0:02:36]} 12. Rac1 {[%clk 0:01:40]}  Qc5 {[%clk 0:02:28]} 13. b4 {[%clk 0:01:39]}  Qb6 {[%clk 0:02:19]} 14. Na4 {[%clk 0:01:34]}  Qd8 {[%clk 0:02:05]} 15. Rfd1 {[%clk 0:01:25]}  Rc8 {[%clk 0:01:57]} 16. b5 {[%clk 0:01:16]}  Nb6 {[%clk 0:01:47]} 17. bxc6 {[%clk 0:01:12]}  bxc6 {[%clk 0:01:44]} 18. c5 {[%clk 0:01:10]}  Nxa4 {[%clk 0:01:39]} 19. Qxa4 {[%clk 0:00:51]}  d5 {[%clk 0:01:35]} 20. Qxa7 {[%clk 0:00:47]}  Ra8 {[%clk 0:01:30]} 21. Qb7 {[%clk 0:00:32]}  Qc8 {[%clk 0:01:28]} 22. Qb3 {[%clk 0:00:18]}  Nd7 {[%clk 0:01:25]} 23. e4 {[%clk 0:00:16]}  e6 {[%clk 0:01:24]} 24. Bd6 {[%clk 0:00:15]}  Re8 {[%clk 0:01:22]} 25. exd5 {[%clk 0:00:16]}  exd5 {[%clk 0:01:22]} 26. Bg4 {[%clk 0:00:15]}  Re4 {[%clk 0:01:15]} 27. Bf3 {[%clk 0:00:12]}  Re8 {[%clk 0:01:08]} 28. Re1 {[%clk 0:00:13]}  Ne5 {[%clk 0:01:03]} 29. Bg2 {[%clk 0:00:11]}  Qa6 {[%clk 0:01:03]} 30. Bxe5 {[%clk 0:00:10]}  Bxe5 {[%clk 0:01:01]} 31. Rc2 {[%clk 0:00:05]}  Bd4 {[%clk 0:00:54]} 32. Rec1 {[%clk 0:00:02]}  Re2 {[%clk 0:00:52]} 33. Qf3 {[%clk 0:00:01]}  Bxf2+ {[%clk 0:00:46]} 0-1


[Site "https://www.chess.com"]

[Event "Titled Tuesday Blitz April 11 Early 2023"]
[White "Vaibhav Jayant Raut"]
[Black "Ramirez Vido, Robert Yorisan"]
[WhiteFideId "5089034"]
[BlackFideId "3513823"]
[WhiteElo "2156"]
[BlackElo "2443"]
[Result "0-1"]
[Round "04"]
[TimeControl "180+2"]
[Date "2023.04.11"]
[WhiteClock "0:00:07"]
[BlackClock "0:00:12"]

1. d4 {[%clk 0:02:59]}  g6 {[%clk 0:02:58]} 2. Nf3 {[%clk 0:02:59]}  Nf6 {[%clk 0:02:57]} 3. g3 {[%clk 0:03:00]}  Bg7 {[%clk 0:02:57]} 4. Bg2 {[%clk 0:03:01]}  O-O {[%clk 0:02:58]} 5. O-O {[%clk 0:03:02]}  d6 {[%clk 0:02:58]} 6. Nc3 {[%clk 0:03:01]}  Nc6 {[%clk 0:02:48]} 7. Re1 {[%clk 0:02:55]}  e5 {[%clk 0:02:46]} 8. dxe5 {[%clk 0:02:51]}  Nxe5 {[%clk 0:02:44]} 9. Nxe5 {[%clk 0:02:50]}  dxe5 {[%clk 0:02:44]} 10. Bg5 {[%clk 0:02:50]}  h6 {[%clk 0:02:37]} 11. Bxf6 {[%clk 0:02:39]}  Bxf6 {[%clk 0:02:29]} 12. Qd5 {[%clk 0:02:25]}  c6 {[%clk 0:02:21]} 13. Qb3 {[%clk 0:02:20]}  Qb6 {[%clk 0:02:17]} 14. Qxb6 {[%clk 0:02:16]}  axb6 {[%clk 0:02:17]} 15. Red1 {[%clk 0:02:17]}  Bg4 {[%clk 0:01:57]} 16. h3 {[%clk 0:02:15]}  Bf5 {[%clk 0:01:56]} 17. Rac1 {[%clk 0:01:50]}  Rfd8 {[%clk 0:01:55]} 18. g4 {[%clk 0:01:45]}  Be6 {[%clk 0:01:48]} 19. a3 {[%clk 0:01:42]}  Rxd1+ {[%clk 0:01:34]} 20. Rxd1 {[%clk 0:01:43]}  Rd8 {[%clk 0:01:35]} 21. Rxd8+ {[%clk 0:01:25]}  Bxd8 {[%clk 0:01:35]} 22. b4 {[%clk 0:01:26]}  Be7 {[%clk 0:01:29]} 23. b5 {[%clk 0:01:14]}  Bxa3 {[%clk 0:01:23]} 24. bxc6 {[%clk 0:01:10]}  bxc6 {[%clk 0:01:24]} 25. Bxc6 {[%clk 0:01:10]}  Kf8 {[%clk 0:00:56]} 26. Bd5 {[%clk 0:01:02]}  Ke7 {[%clk 0:00:48]} 27. Bxe6 {[%clk 0:01:00]}  Kxe6 {[%clk 0:00:49]} 28. e4 {[%clk 0:00:52]}  f5 {[%clk 0:00:41]} 29. gxf5+ {[%clk 0:00:37]}  gxf5 {[%clk 0:00:42]} 30. Kg2 {[%clk 0:00:33]}  Bb2 {[%clk 0:00:36]} 31. exf5+ {[%clk 0:00:32]}  Kxf5 {[%clk 0:00:35]} 32. Nd5 {[%clk 0:00:31]}  Bd4 {[%clk 0:00:32]} 33. Kf3 {[%clk 0:00:23]}  e4+ {[%clk 0:00:25]} 34. Ke2 {[%clk 0:00:22]}  h5 {[%clk 0:00:19]} 35. c3 {[%clk 0:00:19]}  Bc5 {[%clk 0:00:18]} 36. c4 {[%clk 0:00:08]}  Kg5 {[%clk 0:00:15]} 37. Nc3 {[%clk 0:00:07]}  Kf4 {[%clk 0:00:12]} 0-1


[Site "https://www.chess.com"]

[Event "Titled Tuesday Blitz April 11 Early 2023"]
[White "Arabidze, Meri"]
[Black "Mazurkiewicz, Michal"]
[WhiteFideId "13604040"]
[BlackFideId "1124943"]
[WhiteElo "2405"]
[BlackElo "2054"]
[Result "1-0"]
[Round "04"]
[TimeControl "180+2"]
[Date "2023.04.11"]
[WhiteClock "0:00:58"]
[BlackClock "0:00:02"]

1. b3 {[%clk 0:02:56]}  Nf6 {[%clk 0:02:59]} 2. Bb2 {[%clk 0:02:56]}  g6 {[%clk 0:03:00]} 3. g3 {[%clk 0:02:57]}  Bg7 {[%clk 0:03:01]} 4. Bg2 {[%clk 0:02:57]}  O-O {[%clk 0:03:01]} 5. c4 {[%clk 0:02:58]}  d6 {[%clk 0:03:02]} 6. Nf3 {[%clk 0:02:58]}  Nbd7 {[%clk 0:03:02]} 7. O-O {[%clk 0:02:58]}  e5 {[%clk 0:03:02]} 8. d3 {[%clk 0:02:55]}  Re8 {[%clk 0:03:01]} 9. Nc3 {[%clk 0:02:51]}  c6 {[%clk 0:03:01]} 10. e4 {[%clk 0:02:50]}  Nc5 {[%clk 0:02:57]} 11. Re1 {[%clk 0:02:50]}  a5 {[%clk 0:02:50]} 12. h3 {[%clk 0:02:46]}  h6 {[%clk 0:02:15]} 13. Qd2 {[%clk 0:02:45]}  Nh7 {[%clk 0:02:12]} 14. Kh2 {[%clk 0:02:32]}  Ng5 {[%clk 0:02:11]} 15. Nxg5 {[%clk 0:02:25]}  Qxg5 {[%clk 0:02:12]} 16. Rad1 {[%clk 0:02:21]}  Qxd2 {[%clk 0:02:06]} 17. Rxd2 {[%clk 0:02:22]}  f5 {[%clk 0:02:06]} 18. Ba3 {[%clk 0:02:15]}  f4 {[%clk 0:00:34]} 19. h4 {[%clk 0:02:13]}  h5 {[%clk 0:00:20]} 20. Bh3 {[%clk 0:02:13]}  Bxh3 {[%clk 0:00:16]} 21. Kxh3 {[%clk 0:02:14]}  Bh6 {[%clk 0:00:16]} 22. Rdd1 {[%clk 0:01:59]}  Rf8 {[%clk 0:00:13]} 23. g4 {[%clk 0:01:52]}  hxg4+ {[%clk 0:00:11]} 24. Kxg4 {[%clk 0:01:52]}  f3 {[%clk 0:00:11]} 25. Bxc5 {[%clk 0:01:46]}  dxc5 {[%clk 0:00:10]} 26. Na4 {[%clk 0:01:46]}  Rf4+ {[%clk 0:00:10]} 27. Kg3 {[%clk 0:01:47]}  g5 {[%clk 0:00:10]} 28. Rh1 {[%clk 0:01:40]}  Kf7 {[%clk 0:00:10]} 29. Nxc5 {[%clk 0:01:36]}  gxh4+ {[%clk 0:00:07]} 30. Kh3 {[%clk 0:01:24]}  Rg8 {[%clk 0:00:06]} 31. Rhg1 {[%clk 0:01:21]}  b6 {[%clk 0:00:03]} 32. Nd7 {[%clk 0:01:14]}  Rxg1 {[%clk 0:00:02]} 33. Rxg1 {[%clk 0:01:15]}  Ke6 {[%clk 0:00:03]} 34. Nxb6 {[%clk 0:01:16]}  Rf7 {[%clk 0:00:02]} 35. Rg6+ {[%clk 0:01:10]}  Ke7 {[%clk 0:00:02]} 36. Rxh6 {[%clk 0:01:09]}  Rg7 {[%clk 0:00:01]} 37. Rxc6 {[%clk 0:00:59]}  Rg2 {[%clk 0:00:02]} 38. Nd5+ {[%clk 0:00:59]}  Kd7 {[%clk 0:00:02]} 39. Rf6 {[%clk 0:00:58]}  Rxf2 {[%clk 0:00:02]} 40. Kxh4 {[%clk 0:00:59]}  Rf1 {[%clk 0:00:02]} 41. Kg3 {[%clk 0:00:58]} 1-0


[Site "https://www.chess.com"]

[Event "Titled Tuesday Blitz April 11 Early 2023"]
[White "Melaugh, Shane"]
[Black "wqws"]
[WhiteFideId "2509580"]
[WhiteElo "2034"]
[BlackElo "2607"]
[Result "0-1"]
[Round "04"]
[TimeControl "180+2"]
[Date "2023.04.11"]
[WhiteClock "0:00:47"]
[BlackClock "0:01:22"]

1. c4 {[%clk 0:03:00]}  Nf6 {[%clk 0:02:57]} 2. Nc3 {[%clk 0:03:00]}  e6 {[%clk 0:02:54]} 3. e4 {[%clk 0:03:00]}  d5 {[%clk 0:02:54]} 4. cxd5 {[%clk 0:03:00]}  exd5 {[%clk 0:02:54]} 5. e5 {[%clk 0:03:01]}  Ne4 {[%clk 0:02:54]} 6. d4 {[%clk 0:02:59]}  Bb4 {[%clk 0:02:49]} 7. Bd2 {[%clk 0:02:57]}  Nxd2 {[%clk 0:02:47]} 8. Qxd2 {[%clk 0:02:57]}  O-O {[%clk 0:02:47]} 9. a3 {[%clk 0:02:54]}  Be7 {[%clk 0:02:45]} 10. Nf3 {[%clk 0:02:52]}  Bg4 {[%clk 0:02:44]} 11. Bd3 {[%clk 0:02:51]}  Nc6 {[%clk 0:02:37]} 12. Be2 {[%clk 0:02:44]}  f6 {[%clk 0:02:36]} 13. O-O-O {[%clk 0:02:34]}  fxe5 {[%clk 0:02:31]} 14. dxe5 {[%clk 0:02:23]}  Bxf3 {[%clk 0:02:30]} 15. Bxf3 {[%clk 0:02:23]}  Bg5 {[%clk 0:02:29]} 16. Bxd5+ {[%clk 0:02:21]}  Kh8 {[%clk 0:02:29]} 17. f4 {[%clk 0:02:13]}  Bxf4 {[%clk 0:02:28]} 18. Qxf4 {[%clk 0:02:06]}  Rxf4 {[%clk 0:02:27]} 19. Bxc6 {[%clk 0:02:06]}  Qg5 {[%clk 0:02:23]} 20. Bd5 {[%clk 0:01:57]}  c6 {[%clk 0:02:21]} 21. Ba2 {[%clk 0:01:50]}  Qxe5 {[%clk 0:02:18]} 22. Rhe1 {[%clk 0:01:47]}  Qg5 {[%clk 0:02:18]} 23. Rd2 {[%clk 0:01:35]}  Rd4 {[%clk 0:02:06]} 24. Ne4 {[%clk 0:01:27]}  Qf4 {[%clk 0:02:05]} 25. g3 {[%clk 0:01:25]}  Rxe4 {[%clk 0:01:38]} 26. gxf4 {[%clk 0:01:23]}  Rxe1+ {[%clk 0:01:38]} 27. Kc2 {[%clk 0:01:23]}  Rae8 {[%clk 0:01:36]} 28. Rd7 {[%clk 0:01:14]}  R1e7 {[%clk 0:01:34]} 29. Rd6 {[%clk 0:01:03]}  Re2+ {[%clk 0:01:34]} 30. Kc3 {[%clk 0:01:04]}  R8e3+ {[%clk 0:01:29]} 31. Kd4 {[%clk 0:00:58]}  Rd2+ {[%clk 0:01:28]} 32. Kxe3 {[%clk 0:00:59]}  Rxd6 {[%clk 0:01:28]} 33. f5 {[%clk 0:00:59]}  Rh6 {[%clk 0:01:27]} 34. Be6 {[%clk 0:00:57]}  Rxh2 {[%clk 0:01:28]} 35. b4 {[%clk 0:00:58]}  Rh3+ {[%clk 0:01:27]} 36. Kd4 {[%clk 0:00:59]}  Rxa3 {[%clk 0:01:28]} 37. Bc8 {[%clk 0:00:59]}  Ra4 {[%clk 0:01:23]} 38. Kc3 {[%clk 0:00:58]}  a5 {[%clk 0:01:23]} 39. Bxb7 {[%clk 0:00:56]}  Rxb4 {[%clk 0:01:22]} 40. Bxc6 {[%clk 0:00:56]}  h5 {[%clk 0:01:23]} 41. Kd3 {[%clk 0:00:51]}  h4 {[%clk 0:01:23]} 42. Bd7 {[%clk 0:00:47]}  h3 {[%clk 0:01:24]} 43. f6 {[%clk 0:00:47]}  h2 {[%clk 0:01:23]} 44. f7 {[%clk 0:00:47]}  Rf4 {[%clk 0:01:22]} 0-1


[Site "https://www.chess.com"]

[Event "Titled Tuesday Blitz April 11 Early 2023"]
[White "Chylewski, Patryk"]
[Black "Mika, Tomasz"]
[WhiteFideId "1186191"]
[BlackFideId "1132970"]
[WhiteElo "2163"]
[BlackElo "2179"]
[Result "1-0"]
[Round "04"]
[TimeControl "180+2"]
[Date "2023.04.11"]
[WhiteClock "0:00:13"]
[BlackClock "0:00:01"]

1. e4 {[%clk 0:03:00]}  c6 {[%clk 0:03:00]} 2. Nf3 {[%clk 0:03:00]}  d5 {[%clk 0:03:00]} 3. d3 {[%clk 0:03:01]}  dxe4 {[%clk 0:02:58]} 4. dxe4 {[%clk 0:03:01]}  Nd7 {[%clk 0:02:58]} 5. g3 {[%clk 0:02:49]}  g6 {[%clk 0:02:56]} 6. Bg2 {[%clk 0:02:49]}  Bg7 {[%clk 0:02:56]} 7. O-O {[%clk 0:02:49]}  Qc7 {[%clk 0:02:49]} 8. Qe2 {[%clk 0:02:48]}  e6 {[%clk 0:02:34]} 9. Nbd2 {[%clk 0:02:45]}  Ngf6 {[%clk 0:02:30]} 10. Nc4 {[%clk 0:02:43]}  e5 {[%clk 0:02:17]} 11. Rd1 {[%clk 0:02:43]}  O-O {[%clk 0:02:15]} 12. b3 {[%clk 0:02:38]}  b5 {[%clk 0:02:04]} 13. Nd6 {[%clk 0:02:33]}  Ba6 {[%clk 0:02:03]} 14. Bb2 {[%clk 0:02:19]}  Ne8 {[%clk 0:01:36]} 15. Nxe8 {[%clk 0:02:16]}  Rfxe8 {[%clk 0:01:33]} 16. Bh3 {[%clk 0:02:04]}  Nc5 {[%clk 0:01:27]} 17. Qe3 {[%clk 0:01:52]}  Qb6 {[%clk 0:01:12]} 18. Rd2 {[%clk 0:01:46]}  Bc8 {[%clk 0:01:10]} 19. Bxc8 {[%clk 0:01:37]}  Raxc8 {[%clk 0:01:09]} 20. Rad1 {[%clk 0:01:38]}  a5 {[%clk 0:00:57]} 21. Kg2 {[%clk 0:01:25]}  f6 {[%clk 0:00:50]} 22. Rd6 {[%clk 0:01:19]}  Kf7 {[%clk 0:00:36]} 23. h4 {[%clk 0:00:52]}  Bf8 {[%clk 0:00:35]} 24. R6d2 {[%clk 0:00:46]}  Red8 {[%clk 0:00:31]} 25. Ba3 {[%clk 0:00:24]}  b4 {[%clk 0:00:30]} 26. Bb2 {[%clk 0:00:24]}  Rxd2 {[%clk 0:00:29]} 27. Nxd2 {[%clk 0:00:25]}  Rd8 {[%clk 0:00:27]} 28. Nc4 {[%clk 0:00:25]}  Qc7 {[%clk 0:00:24]} 29. Rxd8 {[%clk 0:00:20]}  Qxd8 {[%clk 0:00:25]} 30. Qf3 {[%clk 0:00:20]}  Kg8 {[%clk 0:00:17]} 31. h5 {[%clk 0:00:20]}  Ne6 {[%clk 0:00:16]} 32. hxg6 {[%clk 0:00:17]}  hxg6 {[%clk 0:00:16]} 33. Qg4 {[%clk 0:00:18]}  Kf7 {[%clk 0:00:06]} 34. Bxe5 {[%clk 0:00:17]}  fxe5 {[%clk 0:00:06]} 35. Nxe5+ {[%clk 0:00:18]}  Ke7 {[%clk 0:00:05]} 36. Nxg6+ {[%clk 0:00:17]}  Kd7 {[%clk 0:00:03]} 37. Ne5+ {[%clk 0:00:16]}  Kd6 {[%clk 0:00:01]} 38. Nf7+ {[%clk 0:00:12]}  Kc7 {[%clk 0:00:01]} 39. Nxd8 {[%clk 0:00:13]} 1-0


[Site "https://www.chess.com"]

[Event "Titled Tuesday Blitz April 11 Early 2023"]
[White "Sliwicki, Damian"]
[Black "Rosen, Eric"]
[WhiteFideId "1127128"]
[BlackFideId "2032562"]
[WhiteElo "2030"]
[BlackElo "2331"]
[Result "0-1"]
[Round "04"]
[TimeControl "180+2"]
[Date "2023.04.11"]
[WhiteClock "0:00:03"]
[BlackClock "0:00:46"]

1. e4 {[%clk 0:03:00]}  c5 {[%clk 0:02:59]} 2. Nc3 {[%clk 0:02:55]}  Nc6 {[%clk 0:02:59]} 3. Bb5 {[%clk 0:02:54]}  Nd4 {[%clk 0:02:59]} 4. Nf3 {[%clk 0:02:54]}  a6 {[%clk 0:02:58]} 5. Bc4 {[%clk 0:02:50]}  e6 {[%clk 0:02:52]} 6. Nxd4 {[%clk 0:02:43]}  cxd4 {[%clk 0:02:53]} 7. Ne2 {[%clk 0:02:44]}  Bc5 {[%clk 0:02:45]} 8. O-O {[%clk 0:02:36]}  Nf6 {[%clk 0:02:42]} 9. e5 {[%clk 0:02:33]}  d5 {[%clk 0:02:42]} 10. exf6 {[%clk 0:02:20]}  dxc4 {[%clk 0:02:42]} 11. fxg7 {[%clk 0:02:20]}  Rg8 {[%clk 0:02:42]} 12. Ng3 {[%clk 0:02:17]}  Rxg7 {[%clk 0:02:37]} 13. d3 {[%clk 0:02:08]}  b5 {[%clk 0:02:34]} 14. Qf3 {[%clk 0:01:41]}  Qd5 {[%clk 0:02:23]} 15. Ne4 {[%clk 0:01:40]}  Be7 {[%clk 0:02:11]} 16. Re1 {[%clk 0:01:17]}  Bb7 {[%clk 0:02:10]} 17. Qh3 {[%clk 0:00:43]}  f5 {[%clk 0:02:01]} 18. Ng3 {[%clk 0:00:42]}  O-O-O {[%clk 0:01:51]} 19. Bf4 {[%clk 0:00:35]}  Rg4 {[%clk 0:01:36]} 20. Re5 {[%clk 0:00:27]}  Qc6 {[%clk 0:01:21]} 21. Bd2 {[%clk 0:00:15]}  Rh4 {[%clk 0:01:21]} 22. Rxe6 {[%clk 0:00:04]}  Qxe6 {[%clk 0:01:11]} 23. Qxf5 {[%clk 0:00:03]}  Qxf5 {[%clk 0:00:43]} 24. Nxf5 {[%clk 0:00:04]}  Rg4 {[%clk 0:00:44]} 25. Nxe7+ {[%clk 0:00:04]}  Kd7 {[%clk 0:00:44]} 26. Nf5 {[%clk 0:00:04]}  Rxg2+ {[%clk 0:00:45]} 27. Kf1 {[%clk 0:00:05]}  Rxh2 {[%clk 0:00:45]} 28. f3 {[%clk 0:00:04]}  Rh1+ {[%clk 0:00:45]} 29. Kf2 {[%clk 0:00:03]}  Rxa1 {[%clk 0:00:46]} 0-1


[Site "https://www.chess.com"]

[Event "Titled Tuesday Blitz April 11 Early 2023"]
[White "Berezin, Viktor"]
[Black "Derichs, Roger"]
[WhiteFideId "14107872"]
[BlackFideId "4630076"]
[WhiteElo "2310"]
[BlackElo "2375"]
[Result "1-0"]
[Round "04"]
[TimeControl "180+2"]
[Date "2023.04.11"]
[WhiteClock "0:00:11"]
[BlackClock "0:00:01"]

1. d4 {[%clk 0:03:00]}  d5 {[%clk 0:02:57]} 2. c4 {[%clk 0:03:00]}  e6 {[%clk 0:02:57]} 3. Nf3 {[%clk 0:02:59]}  c6 {[%clk 0:02:57]} 4. Qc2 {[%clk 0:02:59]}  Nf6 {[%clk 0:02:57]} 5. Nbd2 {[%clk 0:02:58]}  Nbd7 {[%clk 0:02:54]} 6. e4 {[%clk 0:02:57]}  dxe4 {[%clk 0:02:53]} 7. Nxe4 {[%clk 0:02:58]}  Nxe4 {[%clk 0:02:52]} 8. Qxe4 {[%clk 0:02:59]}  Bb4+ {[%clk 0:02:52]} 9. Bd2 {[%clk 0:02:59]}  Bxd2+ {[%clk 0:02:51]} 10. Nxd2 {[%clk 0:02:58]}  Nf6 {[%clk 0:02:50]} 11. Qh4 {[%clk 0:02:55]}  h6 {[%clk 0:02:37]} 12. Nb3 {[%clk 0:02:52]}  a5 {[%clk 0:02:32]} 13. Rd1 {[%clk 0:02:48]}  a4 {[%clk 0:02:30]} 14. Na1 {[%clk 0:01:51]}  Qb6 {[%clk 0:02:26]} 15. Rd2 {[%clk 0:01:46]}  O-O {[%clk 0:02:20]} 16. Bd3 {[%clk 0:01:32]}  Qa5 {[%clk 0:02:13]} 17. Qf4 {[%clk 0:01:25]}  Rd8 {[%clk 0:02:01]} 18. O-O {[%clk 0:01:22]}  Qg5 {[%clk 0:02:01]} 19. Qxg5 {[%clk 0:01:15]}  hxg5 {[%clk 0:02:00]} 20. Nc2 {[%clk 0:01:11]}  b6 {[%clk 0:02:00]} 21. Rfd1 {[%clk 0:01:06]}  Kf8 {[%clk 0:01:46]} 22. c5 {[%clk 0:00:52]}  bxc5 {[%clk 0:01:19]} 23. dxc5 {[%clk 0:00:53]}  Rb8 {[%clk 0:01:19]} 24. Ne3 {[%clk 0:00:50]}  Bd7 {[%clk 0:00:40]} 25. Nc4 {[%clk 0:00:48]}  Be8 {[%clk 0:00:32]} 26. Nd6 {[%clk 0:00:47]}  Ke7 {[%clk 0:00:27]} 27. Be2 {[%clk 0:00:39]}  Nd5 {[%clk 0:00:21]} 28. Rc1 {[%clk 0:00:31]}  Rb4 {[%clk 0:00:18]} 29. a3 {[%clk 0:00:27]}  Rbb8 {[%clk 0:00:17]} 30. Bd1 {[%clk 0:00:25]}  Ra8 {[%clk 0:00:16]} 31. Rc4 {[%clk 0:00:24]}  Ra5 {[%clk 0:00:12]} 32. Rdc2 {[%clk 0:00:20]}  Rda8 {[%clk 0:00:10]} 33. Rd2 {[%clk 0:00:17]}  f6 {[%clk 0:00:10]} 34. f3 {[%clk 0:00:17]}  e5 {[%clk 0:00:10]} 35. Kf2 {[%clk 0:00:17]}  Bf7 {[%clk 0:00:10]} 36. Nf5+ {[%clk 0:00:17]}  Kf8 {[%clk 0:00:10]} 37. Rc1 {[%clk 0:00:16]}  Be6 {[%clk 0:00:08]} 38. Nd6 {[%clk 0:00:16]}  Nf4 {[%clk 0:00:07]} 39. g3 {[%clk 0:00:14]}  Nd5 {[%clk 0:00:06]} 40. Be2 {[%clk 0:00:14]}  Ne7 {[%clk 0:00:06]} 41. Bc4 {[%clk 0:00:13]}  Bxc4 {[%clk 0:00:05]} 42. Rxc4 {[%clk 0:00:14]}  Nd5 {[%clk 0:00:05]} 43. Ne4 {[%clk 0:00:14]}  Kf7 {[%clk 0:00:04]} 44. Nd6+ {[%clk 0:00:14]}  Ke6 {[%clk 0:00:04]} 45. Nb7 {[%clk 0:00:14]}  R5a7 {[%clk 0:00:03]} 46. Nd6 {[%clk 0:00:14]}  Rb8 {[%clk 0:00:03]} 47. Ke2 {[%clk 0:00:13]}  Ra5 {[%clk 0:00:03]} 48. Kd3 {[%clk 0:00:12]}  Ra7 {[%clk 0:00:02]} 49. Kc2 {[%clk 0:00:12]}  Ra5 {[%clk 0:00:02]} 50. Ne4 {[%clk 0:00:10]}  Ra7 {[%clk 0:00:02]} 51. Kc1 {[%clk 0:00:11]}  Rab7 {[%clk 0:00:02]} 52. Nd6 {[%clk 0:00:11]}  Ra7 {[%clk 0:00:02]} 53. h4 {[%clk 0:00:11]}  gxh4 {[%clk 0:00:02]} 54. Rxh4 {[%clk 0:00:10]}  Rg8 {[%clk 0:00:01]} 55. g4 {[%clk 0:00:10]}  Ke7 {[%clk 0:00:01]} 56. Nf5+ {[%clk 0:00:11]}  Ke6 {[%clk 0:00:01]} 57. Rh7 {[%clk 0:00:11]} 1-0


[Site "https://www.chess.com"]

[Event "Titled Tuesday Blitz April 11 Early 2023"]
[White "Deng, Henry"]
[Black "morozcoma"]
[WhiteFideId "30965454"]
[WhiteElo "2524"]
[BlackElo "2271"]
[Result "0-1"]
[Round "04"]
[TimeControl "180+2"]
[Date "2023.04.11"]
[WhiteClock "0:00:13"]
[BlackClock "0:00:13"]

1. e4 {[%clk 0:03:00]}  e5 {[%clk 0:02:59]} 2. Nf3 {[%clk 0:03:00]}  Nc6 {[%clk 0:03:00]} 3. d4 {[%clk 0:03:01]}  exd4 {[%clk 0:03:00]} 4. Bc4 {[%clk 0:03:01]}  Nf6 {[%clk 0:02:59]} 5. e5 {[%clk 0:03:01]}  d5 {[%clk 0:03:00]} 6. Bb5 {[%clk 0:03:01]}  Ne4 {[%clk 0:03:00]} 7. Nxd4 {[%clk 0:03:02]}  Bc5 {[%clk 0:03:00]} 8. Be3 {[%clk 0:03:00]}  O-O {[%clk 0:03:00]} 9. Nxc6 {[%clk 0:03:00]}  bxc6 {[%clk 0:02:57]} 10. Bxc5 {[%clk 0:03:00]}  Nxc5 {[%clk 0:02:57]} 11. Bxc6 {[%clk 0:03:01]}  Ba6 {[%clk 0:02:58]} 12. Qxd5 {[%clk 0:02:59]}  Qg5 {[%clk 0:02:57]} 13. e6 {[%clk 0:01:52]}  Qc1+ {[%clk 0:02:37]} 14. Qd1 {[%clk 0:01:53]}  Qxb2 {[%clk 0:02:33]} 15. Bxa8 {[%clk 0:01:39]}  Qe5+ {[%clk 0:02:15]} 16. Kd2 {[%clk 0:01:36]}  Qf4+ {[%clk 0:02:06]} 17. Ke1 {[%clk 0:01:26]}  Qe5+ {[%clk 0:01:52]} 18. Kd2 {[%clk 0:01:24]}  Rd8+ {[%clk 0:01:21]} 19. Kc1 {[%clk 0:01:19]}  Rxd1+ {[%clk 0:01:21]} 20. Rxd1 {[%clk 0:01:19]}  fxe6 {[%clk 0:01:18]} 21. c3 {[%clk 0:01:05]}  Bd3 {[%clk 0:01:00]} 22. Bf3 {[%clk 0:00:54]}  Qg5+ {[%clk 0:00:47]} 23. Rd2 {[%clk 0:00:48]}  e5 {[%clk 0:00:46]} 24. g3 {[%clk 0:00:42]}  e4 {[%clk 0:00:46]} 25. Bd1 {[%clk 0:00:36]}  Qe5 {[%clk 0:00:45]} 26. Kb2 {[%clk 0:00:30]}  Bc4 {[%clk 0:00:31]} 27. Bb3 {[%clk 0:00:25]}  Nd3+ {[%clk 0:00:31]} 28. Kc2 {[%clk 0:00:23]}  Qc5 {[%clk 0:00:29]} 29. Bxc4+ {[%clk 0:00:18]}  Qxc4 {[%clk 0:00:30]} 30. a4 {[%clk 0:00:17]}  Nc5 {[%clk 0:00:26]} 31. Ra3 {[%clk 0:00:16]}  Nd3 {[%clk 0:00:22]} 32. Rb3 {[%clk 0:00:16]}  Qxa4 {[%clk 0:00:21]} 33. Na3 {[%clk 0:00:16]}  c5 {[%clk 0:00:20]} 34. c4 {[%clk 0:00:15]}  Nb4+ {[%clk 0:00:18]} 35. Kc3 {[%clk 0:00:15]}  Nd3 {[%clk 0:00:19]} 36. Kc2 {[%clk 0:00:16]}  Qc6 {[%clk 0:00:16]} 37. Rb8+ {[%clk 0:00:15]}  Kf7 {[%clk 0:00:16]} 38. Nb5 {[%clk 0:00:15]}  Qa6 {[%clk 0:00:14]} 39. Kb3 {[%clk 0:00:12]}  Qa5 {[%clk 0:00:13]} 40. Ra2 {[%clk 0:00:12]}  Qb4+ {[%clk 0:00:13]} 41. Kc2 {[%clk 0:00:12]}  Qxc4+ {[%clk 0:00:13]} 42. Nc3 {[%clk 0:00:13]}  Nb4+ {[%clk 0:00:12]} 43. Rxb4 {[%clk 0:00:12]}  cxb4 {[%clk 0:00:12]} 44. Rxa7+ {[%clk 0:00:13]}  Kg6 {[%clk 0:00:13]} 0-1


[Site "https://www.chess.com"]